bitfinex-derivatives/quotes_ETHF0:USTF0_20251006
["timestamp","ask_amount","ask_price","bid_price","bid_amount"]
[1759768212829,1.21665501,4665.7,4665.6,0.5866]
[1759768213330,1.21665501,4665.7,4665.6,1.1091]
[1759768213736,1.21665501,4665.7,4665.6,0.3856]
[1759768213931,1.21665501,4665.7,4665.6,0.5866]
[1759768214128,0.00271439,4666.0,4665.9,0.58658]
[1759768214430,1.34963562,4666.0,4665.9,0.80178]
[1759768215330,1.34963562,4666.0,4665.9,0.38558]
[1759768215537,1.34963562,4666.0,4665.9,0.58658]
[1759768215837,1.34963562,4666.0,4665.9,1.10908]
[1759768216032,1.01613562,4666.0,4665.9,1.10908]
[1759768216330,0.00271439,4666.0,4665.9,1.10908]
[1759768218137,0.00271439,4666.0,4665.9,6.10908]
[1759768219638,0.6509,4667.0,4666.9,0.8182]
[1759768219936,1.33603346,4667.0,4666.9,0.4327]
[1759768220138,1.72152346,4667.0,4666.4,0.3342]
[1759768220340,0.8611,4666.5,4666.4,0.60854]
[1759768220639,0.30889991,4666.5,4666.4,1.15442571]
[1759768220838,0.00159991,4666.5,4666.4,1.15442571]
[1759768221039,0.52229991,4666.5,4666.4,1.15442571]
[1759768221534,0.73099991,4666.5,4666.4,1.15442571]
[1759768222133,0.00159991,4666.5,4666.4,1.15442571]
[1759768222937,0.86269991,4666.5,4666.4,0.82022571]
[1759768223140,0.00159991,4666.5,4666.4,1.15442571]
[1759768223544,0.73099991,4666.5,4666.4,1.15442571]
[1759768223843,0.00159991,4666.5,4666.4,1.15442571]
[1759768224539,0.00159991,4666.5,4666.4,6.15442571]
[1759768225150,0.00159991,4666.5,4666.4,6.36942571]
[1759768225938,0.00044035,4666.5,4666.4,6.36942571]
[1759768226541,0.3073,4667.7,4667.6,1.15234]
[1759768226542,0.5207,4667.7,4667.6,1.15234]
[1759768226742,0.5207,4667.7,4667.1,0.9637]
[1759768226743,0.8611,4667.5,4667.4,0.38545]
[1759768227045,0.8611,4667.5,4667.4,0.60845]
[1759768227347,0.8611,4667.5,4667.4,1.15235]
[1759768227544,0.86350429,4667.5,4667.4,0.81815]
[1759768227744,0.86350429,4667.5,4667.4,0.223]
[1759768227948,0.86350429,4667.5,4667.3,0.38546]
[1759768228151,0.55620429,4667.5,4667.4,0.223]
[1759768228346,0.55620429,4667.5,4667.3,0.38546]
[1759768228545,0.2134,4666.8,4666.7,0.7669]
[1759768228746,0.1317,4666.5,4666.4,0.21698571]
[1759768228947,0.8611,4666.5,4666.4,0.82552571]
[1759768229149,0.8611,4666.5,4666.4,1.03522571]
[1759768229456,0.3073,4666.5,4666.4,1.36942571]
[1759768229744,0.3073,4666.5,4665.5,0.1224]
[1759768229745,5.8611,4666.5,4665.5,0.3342]
[1759768230051,0.7294,4665.2,4665.1,0.223]
[1759768230349,0.7294,4665.2,4665.1,0.60865]
[1759768230550,0.7294,4665.2,4665.1,0.81835]
[1759768230752,0.5207,4665.2,4665.1,1.15433111]
[1759768230953,0.1317,4665.5,4665.4,0.38562]
[1759768231146,0.5207,4665.5,4665.4,1.15252]
[1759768231346,0.8611,4665.5,4665.4,0.81832]
[1759768231546,0.8611,4665.5,4665.4,0.38562]
[1759768231852,0.8611,4665.5,4665.4,0.60862]
[1759768232149,0.5207,4665.5,4665.4,1.15252]
[1759768232348,33.56910429,4667.5,4666.4,0.60854]
[1759768232349,0.8611,4666.5,4666.4,0.60854]
[1759768233057,0.2134,4665.9,4665.8,0.5572]
[1759768233250,0.4221,4665.4,4665.3,0.223]
[1759768233553,0.1317,4666.0,4665.8,0.223]
[1759768233554,0.5207,4665.9,4665.8,0.223]
[1759768233857,0.7294,4665.9,4665.8,0.60859]
[1759768234054,0.7294,4665.9,4665.5,0.3342]
[1759768234055,0.7294,4665.9,4665.7,0.38559]
[1759768234353,0.7294,4665.8,4665.7,0.38559]
[1759768234555,0.2134,4666.0,4665.9,0.7669]
[1759768234742,0.7294,4666.4,4665.9,0.96395]
[1759768234948,1.20759156,4666.3,4666.2,0.60855]
[1759768235149,1.20759156,4666.3,4666.2,1.15245]
[1759768235853,1.20759156,4666.3,4666.2,0.81825]
[1759768236555,1.20759156,4666.3,4666.2,0.38555]
[1759768237153,0.90029156,4666.3,4666.0,0.38557]
[1759768237456,0.3148,4665.9,4665.2,1.175]
[1759768237651,0.4275,4665.3,4665.2,0.59654]
[1759768237850,0.5507,4666.0,4665.9,0.38558]
[1759768238050,0.1232,4665.5,4665.4,0.38562]
[1759768238253,1.34412975,4665.5,4665.4,0.38562]
[1759768239156,1.34412975,4665.5,4665.4,0.59652]
[1759768239752,1.34412975,4665.5,4665.4,0.38562]
[1759768240057,1.34412975,4665.5,4665.4,0.59652]
[1759768240452,1.34412975,4665.5,4665.4,0.79782]
[1759768241054,1.34412975,4665.5,4665.4,1.11282]
[1759768241055,0.47862975,4665.5,4665.4,1.11282]
[1759768241247,0.1317,4666.5,4665.4,1.11282]
[1759768241248,0.69242975,4666.0,4665.9,1.11278]
[1759768241451,0.1317,4666.5,4666.3,0.38555]
[1759768241655,1.00774232,4666.4,4666.3,1.11275]
[1759768241851,1.22144232,4666.4,4666.3,0.59645]
[1759768242358,1.22144232,4666.4,4666.3,1.11275]
[1759768243055,0.47914232,4666.4,4666.3,1.11275]
[1759768243352,0.47914232,4666.4,4665.4,0.96406]
[1759768243557,0.8655,4665.5,4665.4,0.38562]
[1759768243761,0.8655,4665.5,4665.4,0.79782]
[1759768243953,0.7423,4665.5,4665.4,1.11282]
[1759768244259,0.8655,4666.0,4665.9,0.59648]
[1759768244557,1.34474323,4666.0,4665.9,0.59648]
[1759768245255,1.00784323,4666.0,4665.9,1.11278]
[1759768245651,0.47924323,4666.0,4665.9,1.11278]
[1759768246556,0.47924323,4666.0,4665.9,0.59648]
[1759768246557,1.34474323,4666.0,4665.9,0.59648]
[1759768246960,1.34474323,4666.0,4665.9,0.38558]
[1759768248058,1.34474323,4666.0,4665.9,0.59648]
[1759768248354,0.47924323,4666.0,4665.9,1.14378]
[1759768248559,1.00354323,4666.0,4665.9,1.14378]
[1759768249356,0.8564,4666.5,4666.4,0.60364]
[1759768249659,1.33562854,4666.5,4666.4,0.38554]
[1759768251252,1.21242854,4666.5,4666.4,1.15094]
[1759768251457,1.34092854,4666.5,4666.4,0.82634]
[1759768252553,1.34092854,4666.5,4666.4,1.15094]
[1759768252759,1.21242854,4666.5,4666.4,1.15094]
[1759768253458,1.34092854,4666.5,4666.4,0.38554]
[1759768253656,1.21242854,4666.5,4666.4,1.15094]
[1759768253961,0.47922854,4666.5,4666.4,1.15094]
[1759768254155,0.3203,4666.9,4666.4,1.15094]
[1759768254156,0.85880429,4667.5,4667.4,0.38546]
[1759768254359,1.33799083,4667.5,4667.4,0.38546]
[1759768254563,0.4129,4667.4,4667.3,0.38546]
[1759768254755,0.89208654,4667.4,4667.3,0.38546]
[1759768255060,1.21238654,4667.4,4667.3,0.38546]
[1759768255654,0.3203,4666.6,4666.4,0.96386]
[1759768255958,0.7332,4666.6,4666.5,1.15093]
[1759768256157,1.01596998,4666.6,4666.5,1.15093]
[1759768256952,1.22486998,4666.6,4666.5,0.82633]
[1759768257760,1.01596998,4666.6,4666.5,1.15093]
[1759768258061,0.69566998,4666.6,4666.5,1.15093]
[1759768258264,0.49166998,4666.6,4666.5,1.27413]
[1759768258464,0.7332,4667.4,4667.3,1.15086]
[1759768258664,1.22523962,4667.4,4667.3,0.82626]
[1759768259964,0.49203962,4667.4,4667.3,1.15086]
[1759768261862,0.00240429,4667.5,4667.4,0.3246]
[1759768262062,1.22756524,4667.5,4667.4,0.2181]
[1759768262367,1.35606524,4667.5,4667.3,0.38546]
[1759768262562,1.22516095,4667.4,4667.3,0.38546]
[1759768262973,1.22516095,4667.4,4667.3,0.60356]
[1759768264677,1.22516095,4667.4,4667.3,1.15086]
[1759768264876,1.22516095,4667.4,4667.3,0.82626]
[1759768265473,1.22516095,4667.4,4667.3,1.15086]
[1759768265674,0.49196095,4667.4,4667.3,1.15086]
[1759768265875,0.69596095,4667.4,4667.3,1.15086]
[1759768266074,1.01626095,4667.4,4667.3,1.15086]
[1759768266275,1.22516095,4667.4,4667.3,0.82626]
[1759768266475,1.22516095,4667.4,4667.3,0.60356]
[1759768267079,1.01626095,4667.4,4667.3,1.15086]
[1759768267683,1.22516095,4667.4,4667.3,1.15086]
[1759768268381,1.22516095,4667.4,4667.3,0.82626]
[1759768268582,1.22516095,4667.4,4667.3,0.38546]
[1759768268770,1.22516095,4667.4,4667.3,0.60356]
[1759768268976,0.81226095,4667.4,4667.3,1.15086]
[1759768269175,0.49196095,4667.4,4667.3,1.15086]
[1759768269383,0.00240429,4667.5,4667.4,0.3246]
[1759768269684,0.1285,4668.5,4668.4,0.4408]
[1759768269685,0.6528,4668.5,4668.4,0.4408]
[1759768269887,1.14606921,4668.5,4668.4,1.15077]
[1759768270082,1.01756921,4668.5,4668.4,1.15077]
[1759768270277,0.49326921,4668.5,4668.4,1.15077]
[1759768270585,0.49326921,4668.5,4668.4,1.36577]
[1759768270773,0.49493539,4668.5,4668.4,1.36740216]
[1759768270972,0.00166618,4668.5,4668.4,1.36740216]
[1759768283384,0.3213,4669.8,4669.7,0.59157]
[1759768283581,1.24804206,4669.8,4669.7,0.59157]
[1759768284191,1.24804206,4669.8,4669.7,0.38527]
[1759768284492,1.25042502,4669.8,4669.7,0.38527]
[1759768285594,1.25042502,4669.8,4669.7,0.59157]
[1759768288687,1.25042502,4669.8,4669.7,0.81277]
[1759768288888,1.25042502,4669.8,4669.7,1.11637]
[1759768291998,1.25042502,4669.8,4669.7,0.81277]
[1759768292499,1.25042502,4669.8,4669.7,0.59157]
[1759768292792,1.25042502,4669.8,4669.7,1.02777]
[1759768292998,1.25042502,4669.8,4669.7,1.33137]
[1759768294892,1.25042502,4669.8,4669.7,0.38527]
[1759768295092,1.25042502,4669.8,4669.7,0.60027]
[1759768295890,1.25042502,4669.8,4669.7,0.82147]
[1759768296095,0.71372502,4669.8,4669.7,1.34177]
[1759768296297,0.49452502,4669.8,4669.7,1.34177]
[1759768298897,0.1211,4671.5,4669.7,1.34177]
[1759768298898,1.65196267,4671.0,4670.7,0.4301]
[1759768299194,0.4163,4671.0,4670.9,0.7415]
[1759768299396,0.4163,4671.0,4670.9,0.9565]
[1759768299397,0.2052,4671.0,4670.9,0.9565]
[1759768299598,2.05566267,4671.3,4671.2,0.7415]
[1759768299793,0.5322,4671.3,4671.2,1.12664]
[1759768300100,0.74536755,4671.3,4671.2,1.12664]
[1759768301297,0.74536755,4671.3,4671.2,0.81524]
[1759768303703,0.74536755,4671.3,4671.2,1.12664]
[1759768305704,0.74536755,4671.3,4671.2,0.38514]
[1759768307005,0.74536755,4671.3,4671.1,0.38514]
[1759768307403,0.74536755,4671.3,4671.2,0.2212]
[1759768308001,0.74536755,4671.3,4671.1,0.38514]
[1759768308909,0.74536755,4671.3,4671.2,0.38514]
[1759768310703,0.74536755,4671.3,4671.2,0.58864]
[1759768310904,1.22953771,4671.3,4671.2,0.58864]
[1759768312607,1.22953771,4671.3,4671.2,0.80594]
[1759768312809,1.22953771,4671.3,4671.2,1.12704]
[1759768313509,1.01843771,4671.3,4671.2,1.12704]
[1759768313811,1.22803771,4671.3,4671.2,1.12704]
[1759768314013,1.22803771,4671.3,4671.2,0.80594]
[1759768314306,1.22803771,4671.3,4671.2,1.12704]
[1759768315711,1.22803771,4671.3,4671.2,0.80594]
[1759768318203,1.22803771,4671.3,4671.2,1.12704]
[1759768320314,1.22803771,4671.3,4671.2,0.80594]
[1759768320514,1.22803771,4671.3,4671.2,1.12704]
[1759768321214,1.01843771,4671.3,4671.2,1.12704]
[1759768321511,0.48623771,4671.3,4671.2,1.34204]
[1759768321810,0.00206755,4671.3,4671.2,1.34204]
[1759768322316,0.75416755,4671.3,4671.2,1.02094]
[1759768322608,0.75416755,4671.3,4671.2,41.38864]
[1759768322803,1.2390153,4671.3,4671.2,41.38864]
[1759768323110,1.2390153,4671.3,4671.2,0.58864]
[1759768323504,0.75416755,4671.3,4671.2,0.58864]
[1759768323709,0.75416755,4671.3,4671.2,1.12704]
[1759768324004,0.00206755,4671.3,4671.2,1.12704]
[1759768325310,0.4855033,4671.3,4671.2,1.12704]
[1759768325509,0.35,4672.5,4672.4,0.58854]
[1759768325710,0.5425,4672.5,4672.4,1.12694]
[1759768326509,0.54492243,4672.5,4672.4,1.12942481]
[1759768328009,0.32422243,4672.5,4672.4,1.12942481]
[1759768328209,0.00242243,4672.5,4672.4,1.12942481]
[1759768328816,0.54492243,4672.5,4672.4,1.12942481]
[1759768329516,0.00242243,4672.5,4672.4,1.12942481]
[1759768330312,0.75452243,4672.5,4672.4,1.12942481]
[1759768330511,0.88472243,4672.5,4672.4,1.12942481]
[1759768331218,0.88472243,4672.5,4672.4,0.80832481]
[1759768331520,0.88472243,4672.5,4672.4,1.12942481]
[1759768333321,0.75452243,4672.5,4672.4,1.12942481]
[1759768333516,0.00242243,4672.5,4672.4,1.12942481]
[1759768334716,0.022,4672.9,4672.8,1.12691]
[1759768334918,0.022,4672.9,4672.8,1.34191]
[1759768335321,0.022,4672.9,4672.8,42.14191]
[1759768335715,0.02448709,4672.9,4672.8,42.14191]
[1759768336117,0.2207,4673.5,4673.4,0.80576]
[1759768336320,0.5425,4673.7,4673.6,0.38495]
[1759768336628,0.7521,4673.7,4673.6,1.12685]
[1759768336820,0.7521,4673.7,4673.6,0.58845]
[1759768337123,0.75466663,4673.7,4673.6,0.80575]
[1759768337323,0.75466663,4673.7,4673.6,1.12685]
[1759768337525,1.24520903,4673.7,4673.6,1.12685]
[1759768340221,0.49310903,4673.7,4673.6,1.12685]
[1759768340621,1.03300903,4673.7,4673.6,1.12685]
[1759768340928,1.25160903,4673.7,4673.6,1.12685]
[1759768341129,1.25160903,4673.7,4673.6,1.34085]
[1759768342130,0.76106663,4673.7,4673.6,1.34085]
[1759768342834,0.00256663,4673.7,4673.6,1.34085]
[1759768343432,0.76106663,4673.7,4673.6,1.34085]
[1759768344333,0.54246663,4673.7,4673.6,1.34085]
[1759768344637,0.76106663,4673.7,4673.6,1.34085]
[1759768347134,0.76106663,4673.7,4673.6,0.38495]
[1759768347636,1.25100933,4673.7,4673.6,0.38495]
[1759768348036,1.25100969,4673.7,4673.6,0.60705]
[1759768351439,1.25100969,4673.7,4673.6,0.38495]
[1759768354235,1.25100969,4673.7,4673.6,0.60705]
[1759768354431,1.25100969,4673.7,4673.6,1.13565]
[1759768354644,0.49250969,4673.7,4673.6,1.13565]
[1759768355641,0.70460969,4673.7,4673.6,1.13565]
[1759768355942,1.03320969,4673.7,4673.6,1.13205]
[1759768357245,1.24790969,4673.7,4673.6,1.13205]
[1759768357446,1.24790969,4673.7,4673.6,0.80845]
[1759768357845,1.24790969,4673.7,4673.6,0.60705]
[1759768358149,1.24790969,4673.7,4673.6,0.59895]
[1759768360647,1.24790969,4673.7,4673.6,0.38495]
[1759768361149,0.7626,4673.2,4673.1,0.59899]
[1759768361351,1.25254306,4673.2,4673.1,0.59899]
[1759768363249,1.25254306,4673.2,4673.1,0.38499]
[1759768370452,6.25254306,4673.2,4673.1,0.38499]
[1759768378254,6.46654306,4673.2,4673.1,0.38499]
[1759768379162,6.25254306,4673.2,4673.1,0.38499]
[1759768379462,6.46654306,4673.2,4673.1,0.38499]
[1759768379856,6.25254306,4673.2,4673.1,0.38499]
[1759768380057,6.46654306,4673.2,4673.1,0.38499]
[1759768380359,1.25254306,4673.2,4673.1,0.60349]
[1759768380562,1.25254306,4673.2,4673.1,1.12989]
[1759768381156,1.25254306,4673.2,4673.1,0.38499]
[1759768381351,0.3304,4672.5,4672.4,0.60602481]
[1759768381560,0.8649,4672.5,4672.4,0.60602481]
[1759768381769,1.35935296,4672.5,4672.4,0.60602481]
[1759768382268,1.35935296,4672.5,4672.4,0.38752481]
[1759768382563,1.35935296,4672.5,4672.4,0.60602481]
[1759768382955,1.35935296,4672.5,4672.4,0.82502481]
[1759768383562,1.23015296,4672.5,4672.4,1.13242481]
[1759768383955,1.35935296,4672.5,4672.4,1.13242481]
[1759768385072,0.49445296,4672.5,4672.4,1.13242481]
[1759768385770,0.33616663,4673.7,4673.6,0.82245]
[1759768386070,0.73826663,4673.7,4673.6,1.12985]
[1759768387065,0.53706663,4673.7,4673.6,1.12985]
[1759768387368,0.00256663,4673.7,4673.6,1.12985]
[1759768387870,0.33616663,4673.7,4673.6,1.12985]
[1759768388064,0.00256663,4673.7,4673.6,1.12985]
[1759768388569,0.53706663,4673.7,4673.6,1.12985]
[1759768388865,0.00256663,4673.7,4673.6,1.12985]
[1759768389873,0.53706663,4673.7,4673.6,1.12985]
[1759768390174,0.73826663,4673.7,4673.6,0.82245]
[1759768392467,0.73826663,4673.7,4673.6,0.38495]
[1759768393969,0.73826663,4673.7,4673.6,0.60345]
[1759768394375,0.73826663,4673.7,4673.6,1.12985]
[1759768396974,0.00256663,4673.7,4673.6,1.12985]
[1759768397571,0.51939296,4673.7,4673.6,1.12985]
[1759768400177,0.51939296,4673.7,4673.6,6.12985]
[1759768400569,0.51939296,4673.7,4673.6,46.92985]
[1759768402781,0.51939296,4673.7,4673.6,41.92985]
[1759768404081,0.3276,4674.2,4674.1,0.8052]
[1759768404284,0.3276,4674.2,4674.1,1.3537]
[1759768404881,0.1292,4675.0,4674.9,0.60324]
[1759768405186,0.55785419,4675.0,4674.9,0.60324]
[1759768405379,0.55785419,4675.0,4674.9,1.13964]
[1759768405380,0.00175419,4675.0,4674.9,1.13964]
[1759768405682,0.00175419,4675.0,4674.9,1.35364]
[1759768406380,0.32935419,4675.0,4674.9,1.35364]
[1759768407176,0.75625419,4675.0,4674.9,1.35364]
[1759768407378,0.88915419,4675.0,4674.9,1.35364]
[1759768408785,0.88915419,4675.0,4674.9,1.01914]
[1759768409080,0.88915419,4675.0,4674.9,1.35364]
[1759768409882,0.55035419,4675.0,4674.9,1.35364]
[1759768410083,0.00175419,4675.0,4674.9,1.35364]
[1759768411886,0.55035419,4675.0,4674.9,1.35364]
[1759768412482,0.88915419,4675.0,4674.9,0.59884]
[1759768413181,0.88915419,4675.0,4674.9,0.81724]
[1759768413589,0.2059,4674.8,4674.7,0.38485]
[1759768413781,0.7545,4674.8,4674.7,0.38485]
[1759768413976,0.7545,4674.8,4674.7,1.13965]
[1759768414378,0.7545,4674.8,4674.7,0.2184]
[1759768415887,0.7545,4674.8,4674.6,0.38486]
[1759768416087,0.51905778,4674.7,4674.6,0.38486]
[1759768416285,0.94325778,4674.7,4674.6,0.38486]
[1759768416489,1.27365778,4674.7,4674.6,0.60376]
[1759768416889,1.27365778,4674.7,4674.6,0.38486]
[1759768417891,1.27365778,4674.7,4674.4,0.59887]
[1759768418190,0.7546,4674.3,4674.2,1.0184]
[1759768418390,1.27365778,4674.3,4674.2,1.0184]
[1759768419292,1.27365778,4674.3,4674.2,0.7995]
[1759768419691,9.01154908,4674.3,4672.5,0.3303]
[1759768419994,0.2034,4672.8,4672.7,0.60392]
[1759768420193,1.27365778,4672.8,4672.7,41.73422]
[1759768420783,1.27365778,4672.8,4672.7,0.81602]
[1759768420988,1.27365778,4672.8,4672.7,0.38502]
[1759768423791,0.8753,4672.5,4672.4,0.00248481]
[1759768423994,0.7546,4672.3,4672.2,0.38506]
[1759768424186,0.7546,4672.3,4672.2,0.60396]
[1759768424187,1.27365778,4672.3,4672.2,0.60396]
[1759768426096,1.27365778,4672.3,4672.2,1.14865224]
[1759768427101,0.7546,4672.3,4672.2,1.14865224]
[1759768432900,0.8756,4673.0,4672.9,0.385]
[1759768433100,1.39197812,4673.0,4672.9,0.385]
[1759768434101,0.8756,4673.0,4672.9,0.385]
[1759768434704,1.39180034,4673.0,4672.9,0.385]
[1759768435002,0.8756,4673.0,4672.9,0.385]
[1759768435502,1.39181512,4673.0,4672.9,0.385]
[1759768435703,0.8756,4673.0,4672.9,0.385]
[1759768436304,6.39187342,4673.0,4672.9,0.385]
[1759768437505,1.39187342,4673.0,4672.9,0.385]
[1759768437705,0.7549,4673.0,4672.9,1.1216]
[1759768437912,0.1311,4674.5,4673.4,1.12156]
[1759768438201,0.1311,4674.5,4673.1,0.96247]
[1759768438202,0.5666,4674.5,4674.4,0.38488]
[1759768438498,0.5666,4674.5,4673.1,0.96247]
[1759768438499,3.90337284,4674.4,4674.2,0.38489]
[1759768438709,1.27151013,4674.3,4674.2,0.38489]
[1759768439100,3.99550938,4674.3,4674.2,0.38489]
[1759768441010,4.20950938,4674.3,4674.2,0.38489]
[1759768441303,3.78080938,4674.3,4674.2,0.59199]
[1759768441510,1.27151013,4674.3,4674.2,0.59199]
[1759768441710,0.51661013,4674.3,4674.2,1.12149]
[1759768442013,0.7549,4674.9,4674.8,0.38485]
[1759768442208,0.4355,4674.7,4674.6,0.38486]
[1759768442414,1.27191457,4674.7,4674.6,0.38486]
[1759768442610,4.09963903,4674.7,4674.6,0.38486]
[1759768442810,4.31363903,4674.7,4674.6,0.38486]
[1759768443608,4.31363903,4674.7,4674.6,0.59196]
[1759768443808,4.31363903,4674.7,4674.6,0.38486]
[1759768444211,0.83641457,4674.7,4674.6,1.12146]
[1759768444415,0.51701457,4674.7,4674.6,1.12146]
[1759768444613,0.00175419,4675.0,4674.9,0.3158]
[1759768444916,0.52138801,4675.0,4674.9,0.7366]
[1759768446914,0.00175419,4675.0,4674.9,0.7366]
[1759768447113,0.24000095,4675.7,4675.6,0.7366]
[1759768447313,1.2939145,4675.7,4675.6,0.59188]
[1759768447515,1.2939145,4675.7,4675.1,2.13812]
[1759768447516,1.2939145,4675.7,4675.4,0.3848]
[1759768447816,0.886,4675.5,4675.4,0.5919]
[1759768448016,1.40581355,4675.5,4675.4,0.5919]
[1759768448219,1.40857496,4675.5,4675.4,1.12377098]
[1759768448510,1.27747496,4675.5,4675.4,1.12377098]
[1759768448910,1.40857496,4675.5,4675.4,1.12377098]
[1759768451218,0.88876141,4675.5,4675.4,1.12377098]
[1759768452110,1.40747087,4675.5,4675.4,1.12377098]
[1759768452817,1.40747087,4675.5,4675.4,0.20947098]
[1759768453016,1.40747087,4675.5,4675.4,0.00237098]
[1759768453218,1.40747087,4675.5,4674.5,0.59197]
[1759768453219,0.7549,4674.6,4674.5,0.59197]
[1759768453920,0.7549,4674.6,4674.5,0.38487]
[1759768454420,1.27280661,4674.6,4674.5,0.38695349]
[1759768455217,1.27271832,4674.6,4674.5,0.59405349]
[1759768455418,1.27271832,4674.6,4674.5,1.12355349]
[1759768455419,0.7549,4674.6,4674.5,1.12355349]
[1759768455621,0.6713,4675.0,4674.9,0.80564]
[1759768455817,1.18900693,4675.0,4674.9,1.12144]
[1759768456217,1.40370693,4675.0,4674.9,1.12144]
[1759768456614,1.40370693,4675.0,4674.9,0.2137]
[1759768456815,1.40370693,4675.0,4674.6,0.38486]
[1759768457123,0.7549,4674.6,4674.5,0.38694349]
[1759768457324,1.27260693,4674.6,4674.5,0.00208349]
[1759768458024,1.27260693,4674.6,4673.5,1.27818]
[1759768458025,0.417,4674.2,4674.1,0.3849]
[1759768458226,0.7439,4674.1,4674.0,0.38491]
[1759768458419,1.26160693,4674.1,4674.0,0.38491]
[1759768458918,1.26160693,4674.1,4674.0,0.38707626]
[1759768460726,4.1024643,4674.1,4674.0,0.38707626]
[1759768462129,9.3164643,4674.1,4674.0,0.00216626]
[1759768462325,9.3164643,4674.1,4672.8,0.59321]
[1759768462326,0.7439,4672.9,4672.8,0.59321]
[1759768462634,0.5381,4673.5,4673.4,0.59316]
[1759768462923,1.05576742,4673.5,4673.4,0.59316]
[1759768463127,1.38266742,4673.5,4673.4,0.38496]
[1759768463329,1.38266742,4673.5,4673.4,0.38739247]
[1759768463824,1.38266742,4673.5,4673.4,1.12629247]
[1759768463825,1.26156742,4673.5,4673.4,1.12629247]
[1759768464027,0.1211,4674.5,4674.4,0.38488]
[1759768464219,0.865,4674.5,4674.4,0.59308]
[1759768464423,0.865,4674.5,4674.4,1.12378]
[1759768465027,0.865,4674.5,4674.4,0.80878]
[1759768465234,0.865,4674.5,4674.4,0.38488]
[1759768467031,0.7439,4673.7,4673.6,0.59315]
[1759768467729,0.7439,4673.7,4673.6,0.38495]
[1759768469232,0.865,4673.5,4673.4,0.38739247]
[1759768470626,3.65058,4673.5,4673.4,0.00243247]
[1759768471423,8.65058,4673.5,4673.4,0.00243247]
[1759768471629,8.65058,4673.5,4672.2,0.214]
[1759768471630,0.7439,4672.3,4672.2,1.12396]
[1759768472628,0.7439,4672.3,4672.2,1.12660138]
[1759768472827,0.5381,4672.3,4672.2,1.12660138]
[1759768473026,0.3269,4672.3,4672.2,1.12660138]
[1759768473432,0.5381,4672.3,4672.2,1.12660138]
[1759768474732,0.7439,4672.3,4672.2,0.59590138]
[1759768475033,0.7439,4672.3,4672.2,0.00264138]
[1759768475931,0.7439,4672.3,4672.2,0.75514138]
[1759768476132,0.51492048,4672.3,4672.2,0.75514138]
[1759768476729,0.72612048,4672.3,4672.2,0.75514138]
[1759768477036,1.04022048,4672.3,4672.2,0.75514138]
[1759768477239,0.51492048,4672.3,4672.2,0.75514138]
[1759768477437,0.72612048,4672.3,4672.2,0.75514138]
[1759768477731,1.24612048,4672.3,4672.2,0.43304138]
[1759768477932,1.24612048,4672.3,4672.2,0.00264138]
[1759768478531,1.24612048,4672.3,4672.2,0.21154138]
[1759768479835,1.24612048,4672.3,4672.2,0.00264138]
[1759768481736,1.24612048,4672.3,4672.2,0.38770138]
[1759768482339,0.7312,4672.3,4672.2,0.38770138]
[1759768483340,1.2461237,4672.3,4672.2,0.38770138]
[1759768484035,0.7312,4672.3,4672.2,0.81810138]
[1759768484240,0.8523,4673.0,4672.9,0.5939]
[1759768484444,1.36737247,4673.0,4672.9,0.385]
[1759768484634,1.36737247,4673.0,4672.9,0.5939]
[1759768485034,1.36737247,4673.0,4672.9,0.385]
[1759768485229,0.7312,4672.4,4672.3,0.38505]
[1759768485432,0.7312,4672.4,4672.2,0.00264138]
[1759768485433,1.24639151,4672.4,4672.2,0.00264138]
[1759768485743,1.2463819,4672.3,4672.2,0.00264138]
[1759768487635,1.2463819,4672.3,4672.2,0.43304138]
[1759768487839,0.3141,4672.7,4672.6,0.2089]
[1759768488034,0.7472,4672.7,4672.6,1.14363]
[1759768488234,1.2626992,4672.7,4672.6,0.80943]
[1759768488438,1.2626992,4672.7,4672.6,0.38503]
[1759768494049,1.6477192,4672.7,4672.6,0.38503]
[1759768495346,0.38504,4672.5,4672.4,0.38504]
[1759768495552,1.7745392,4672.5,4672.4,0.38504]
[1759768496446,1.3894992,4672.5,4672.4,0.38504]
[1759768496648,1.7745392,4672.5,4672.4,0.38504]
[1759768496850,4.60619192,4672.5,4672.4,0.38504]
[1759768499856,0.81205,4672.3,4672.2,0.00264138]
[1759768500052,1.8638492,4672.3,4672.2,0.00264138]
[1759768500252,4.64176088,4672.3,4672.2,0.00264138]
[1759768500956,4.64176088,4672.3,4670.9,1.17692]
[1759768500957,0.2051,4671.2,4670.9,1.17692]
[1759768501161,0.874,4671.0,4670.9,1.36077]
[1759768501357,1.3894992,4671.0,4670.9,1.36077]
[1759768501563,1.3894992,4671.0,4670.9,0.81257]
[1759768501958,1.39101014,4671.0,4670.9,0.81428173]
[1759768502462,1.26631014,4671.0,4670.9,1.14848173]
[1759768503556,1.39101014,4671.0,4670.9,0.00171173]
[1759768503762,1.39101014,4671.0,4670.9,0.76331173]
[1759768503763,0.51701014,4671.0,4670.9,0.76331173]
[1759768504762,1.04441014,4671.0,4670.9,0.76331173]
[1759768505166,0.51701014,4671.0,4670.9,0.76331173]
[1759768505761,0.51701014,4671.0,4670.9,5.76331173]
[1759768506467,0.1247,4672.5,4671.9,0.38509]
[1759768506660,0.874,4672.0,4671.9,1.14669]
[1759768506863,0.874,4672.0,4671.8,0.38509]
[1759768507058,4.03580463,4672.0,4671.5,0.38511]
[1759768507365,0.7493,4671.4,4671.3,0.59703]
[1759768507559,0.3298,4671.0,4670.9,0.00171173]
[1759768507769,0.874,4671.0,4670.9,0.38688173]
[1759768507962,0.874,4671.0,4670.9,1.14848173]
[1759768508167,0.874,4671.0,4670.9,0.81428173]
[1759768509766,0.874,4671.0,4670.9,1.14848173]
[1759768510168,0.874,4671.0,4670.9,0.38688173]
[1759768510564,0.874,4671.0,4670.9,0.00171173]
[1759768511162,0.874,4671.0,4670.9,0.21361173]
[1759768511363,0.5274,4671.0,4670.9,0.76331173]
[1759768511669,0.3223,4671.4,4671.3,1.14673]
[1759768511872,0.5274,4671.4,4671.3,1.14673]
[1759768512172,0.7493,4671.4,4671.3,1.14673]
[1759768512770,0.5274,4671.7,4671.6,0.4274]